bitfinex/quotes_SOLUSD_20220130
["timestamp","ask_amount","ask_price","bid_price","bid_amount"]
[1643507567016,0.25,94.669,94.613,40.64776612]
[1643507569520,6.25,94.669,94.613,40.64776612]
[1643507569720,6.0,94.669,94.613,40.64776612]
[1643507569920,0.25,94.668,94.613,40.64776612]
[1643507571522,0.25,94.668,94.581,23.5785]
[1643507571722,24.6716,94.668,94.591,6.0]
[1643507571922,24.6716,94.668,94.592,23.873]
[1643507572124,24.6716,94.668,94.602,6.0]
[1643507572325,24.6716,94.668,94.603,0.25]
[1643507572522,24.6716,94.668,94.603,44.95309925]
[1643507573524,24.6716,94.668,94.604,24.1443]
[1643507573924,24.6716,94.668,94.605,0.25]
[1643507578228,6.0,94.658,94.605,0.25]
[1643507578627,0.25,94.657,94.605,0.25]
[1643507582528,6.25,94.657,94.605,0.25]
[1643507582728,6.0,94.657,94.605,0.25]
[1643507582928,0.25,94.656,94.605,0.25]
[1643507589764,0.25,94.657,94.605,0.25]
[1643507602081,6.0,94.658,94.605,0.25]
[1643507602481,6.0,94.68,94.605,0.25]
[1643507603081,23.5505,94.689,94.605,0.25]
[1643507603082,6.0,94.679,94.605,0.25]
[1643507603281,0.25,94.678,94.605,0.25]
[1643507603882,23.0321,94.678,94.605,0.25]
[1643507604082,6.0,94.668,94.605,0.25]
[1643507604286,23.1998,94.667,94.605,0.25]
[1643507604682,6.0,94.657,94.605,0.25]
[1643507604983,0.25,94.656,94.605,0.25]
[1643507609189,6.0,94.68,94.605,0.25]
[1643507609392,0.25,94.679,94.605,0.25]
[1643507609590,6.25,94.679,94.605,0.25]
[1643507609790,24.6135,94.678,94.605,0.25]
[1643507609994,6.0,94.668,94.605,0.25]
[1643507610191,24.8635,94.667,94.604,24.1443]
[1643507610593,6.0,94.657,94.605,0.25]
[1643507610793,0.25,94.656,94.605,0.25]
[1643507614517,15.854,94.69,94.605,0.25]
[1643507614721,24.2458,94.707,94.614,6.0]
[1643507614919,2.94057434,94.725,94.614,6.0]
[1643507615122,2.94057434,94.725,94.616,6.0]
[1643507615422,5.88396658,94.729,94.617,29.69159199]
[1643507615624,215.5944,94.79,94.627,6.0]
[1643507615625,5.88396658,94.749,94.627,6.0]
[1643507615823,15.845,94.75,94.65,15.842]
[1643507616023,6.0,94.74,94.66,6.0]
[1643507616323,6.0,94.74,94.661,0.25]
[1643507616525,6.0,94.74,94.662,6.0]
[1643507616925,6.0,94.74,94.663,0.25]
[1643507617324,0.25,94.739,94.663,0.25]
[1643507617724,23.5003,94.739,94.663,22.9817]
[1643507618123,6.0,94.729,94.673,6.0]
[1643507618323,0.25,94.728,94.674,0.25]
[1643507623127,15.27,94.77,94.674,0.25]
[1643507623326,25.1107,94.757,94.674,23.5963]
[1643507623528,25.1107,94.757,94.684,6.0]
[1643507623726,25.1107,94.757,94.685,68.04939925]
[1643507623928,25.1107,94.757,94.685,68.29939925]
[1643507624130,25.1107,94.757,94.695,6.0]
[1643507624329,25.1107,94.757,94.696,23.8811]
[1643507624529,25.1107,94.757,94.695,6.0]
[1643507624830,25.1107,94.757,94.685,44.70309925]
[1643507625229,25.1107,94.757,94.686,0.25]
[1643507625629,25.1107,94.757,94.686,24.4995]
[1643507626431,6.0,94.747,94.686,24.4995]
[1643507626632,6.0,94.747,94.686,24.2495]
[1643507626832,0.25,94.746,94.687,0.25]
[1643507627836,0.25,94.756,94.686,24.2495]
[1643507628033,0.25,94.756,94.687,0.25]
[1643507630636,24.8607,94.757,94.687,0.25]
[1643507632238,0.25,94.756,94.687,0.25]
[1643507632438,0.25,94.756,94.686,24.2495]
[1643507632640,6.0,94.747,94.685,44.70309925]
[1643507632842,24.9192,94.746,94.685,44.70309925]
[1643507633039,6.0,94.736,94.685,44.70309925]
[1643507633439,0.25,94.735,94.685,44.70309925]
[1643507634043,0.25,94.735,94.652,24.8498]
[1643507634242,2.95669142,94.734,94.62,15.27]
[1643507634442,15.27,94.73,94.619,22.8469]
[1643507634644,6.0,94.72,94.619,23.0969]
[1643507634845,105.8,94.718,94.62,1.83736759]
[1643507635045,6.0,94.708,94.621,46.25681196]
[1643507635245,6.0,94.708,94.621,46.50681196]
[1643507635448,0.25,94.707,94.622,1.83736759]
[1643507635649,6.25,94.707,94.622,1.83736759]
[1643507635845,6.25,94.707,94.623,0.25]
[1643507636046,6.25,94.707,94.632,6.0]
[1643507636245,0.1,94.788,94.633,22.9617]
[1643507636448,2.95669142,94.722,94.633,24.79906759]
[1643507636647,6.0,94.712,94.633,24.79906759]
[1643507636848,0.25,94.711,94.643,6.0]
[1643507637049,0.25,94.711,94.644,29.6742]
[1643507637249,0.25,94.711,94.644,29.9242]
[1643507637450,15.847,94.74,94.645,107.63736759]
[1643507637652,6.0,94.73,94.656,10.14714799]
[1643507637852,0.25,94.729,94.657,24.3355]
[1643507638056,6.25,94.729,94.657,24.3355]
[1643507638255,6.25,94.729,94.667,6.0]
[1643507638256,0.25,94.729,94.667,6.0]
[1643507638453,0.25,94.729,94.668,22.8826]
[1643507638852,0.25,94.729,94.669,0.25]
[1643507639070,0.25,94.738,94.669,0.25]
[1643507639470,0.25,94.738,94.678,6.0]
[1643507639870,0.25,94.738,94.679,0.25]
[1643507640676,0.25,94.738,94.679,6.25]
[1643507640874,0.25,94.738,94.68,23.5056]
[1643507641274,0.25,94.738,94.681,0.25]
[1643507643085,0.25,94.738,94.69,6.0]
[1643507643282,0.25,94.738,94.691,37.24651844]
[1643507643681,0.25,94.738,94.692,24.6929]
[1643507643880,0.25,94.748,94.693,0.25]
[1643507644085,6.25,94.748,94.693,0.25]
[1643507646489,0.25,94.748,94.693,0.25]
[1643507646888,0.25,94.757,94.693,0.25]
[1643507648692,6.0,94.748,94.693,0.25]
[1643507648891,0.25,94.747,94.693,0.25]
[1643507650722,25.1675,94.747,94.693,0.25]
[1643507667441,1.46753544,94.739,94.693,0.25]
[1643507667642,1.46753544,94.738,94.693,0.25]
[1643507675650,1.46753544,94.742,94.693,0.25]
[1643507675848,0.25,94.741,94.693,0.25]
[1643507676871,0.25,94.741,94.693,106.05]
[1643507677675,0.25,94.742,94.693,106.05]
[1643507679279,0.25,94.742,94.693,0.25]
[1643507680774,0.25,94.743,94.692,0.25]
[1643507681175,0.25,94.743,94.692,24.1091]
[1643507686882,0.25,94.743,94.692,0.25]
[1643507687380,1.46753544,94.739,94.692,0.25]
[1643507687582,0.25,94.743,94.692,24.7976]
[1643507687981,1.71753544,94.743,94.692,24.7976]
[1643507688182,1.46753544,94.742,94.692,24.7976]
[1643507688383,0.25,94.741,94.692,24.7976]
[1643507688583,0.25,94.741,94.692,24.5476]
[1643507688782,1.71753544,94.741,94.692,24.5476]
[1643507689782,1.46753544,94.74,94.693,0.25]
[1643507689982,1.71753544,94.741,94.693,0.25]
[1643507690184,1.46753544,94.741,94.693,0.25]
[1643507690385,0.25,94.74,94.693,0.25]
[1643507690783,1.71753544,94.74,94.693,0.25]
[1643507691183,0.25,94.74,94.693,0.25]
[1643507691384,0.25,94.742,94.693,0.25]
[1643507691583,1.46753544,94.744,94.703,105.8]
[1643507691785,1.46753544,94.754,94.713,6.0]
[1643507691985,1.46753544,94.755,94.705,105.8]
[1643507692182,1.46753544,94.758,94.715,6.0]
[1643507692386,1.46753544,94.758,94.716,0.25]
[1643507692583,1.46753544,94.761,94.716,0.25]
[1643507692782,1.46753544,94.763,94.716,0.25]
[1643507693183,1.46753544,94.763,94.716,106.05]
[1643507693383,1.46753544,94.761,94.716,106.05]
[1643507693584,1.71753544,94.762,94.718,105.8]
[1643507693784,1.71753544,94.762,94.719,0.25]
[1643507693983,1.46753544,94.761,94.719,0.25]
[1643507694385,0.25,94.76,94.719,0.25]
[1643507694586,1.71753544,94.76,94.719,0.25]
[1643507694985,0.25,94.76,94.719,0.25]
[1643507695784,0.25,94.762,94.719,0.25]
[1643507696383,1.46753544,94.765,94.719,0.25]
[1643507696384,0.25,94.764,94.719,0.25]
[1643507697987,1.71753544,94.764,94.719,0.25]
[1643507698185,1.46753544,94.765,94.719,0.25]
[1643507698387,0.25,94.763,94.719,0.25]
[1643507699390,1.71753544,94.765,94.719,0.25]
[1643507699587,1.71753544,94.765,94.728,6.0]
[1643507699790,0.25,94.765,94.729,19.40744151]
[1643507699989,1.46753544,94.766,94.729,125.20744151]
[1643507700188,1.46753544,94.769,94.739,6.0]
[1643507700388,1.46753544,94.771,94.739,6.0]
[1643507700589,1.46753544,94.773,94.74,6.0]
[1643507700788,1.46753544,94.774,94.74,6.0]
[1643507700992,1.46753544,94.773,94.74,6.0]
[1643507701189,1.46753544,94.775,94.74,6.0]
[1643507701389,0.25,94.774,94.74,6.0]
[1643507701788,1.71753544,94.775,94.74,6.0]
[1643507701991,1.46753544,94.776,94.74,6.0]
[1643507702192,1.46753544,94.779,94.741,0.25]
[1643507702392,6.0,94.792,94.741,0.25]
[1643507702393,1.46753544,94.78,94.741,0.25]
[1643507702789,6.0,94.792,94.741,0.25]
[1643507702790,1.46753544,94.783,94.741,0.25]
[1643507702990,1.46753544,94.786,94.741,0.25]
[1643507703192,6.0,94.773,94.741,0.25]
[1643507703792,6.0,94.776,94.741,0.25]
[1643507704592,6.0,94.775,94.741,0.25]
[1643507704793,6.0,94.775,94.741,24.024]
[1643507705192,1.46753544,94.785,94.741,24.024]
[1643507705793,1.46753544,94.788,94.741,24.024]
[1643507706394,1.46753544,94.792,94.741,24.024]
[1643507706797,0.25,94.791,94.741,24.024]
[1643507708095,1.46753544,94.79,94.741,24.024]
[1643507708295,0.25,94.789,94.741,24.024]
[1643507708794,0.1,94.817,94.741,24.024]
[1643507708795,1.46753544,94.791,94.741,24.024]
[1643507708994,1.71753544,94.791,94.741,24.024]
[1643507709195,0.25,94.791,94.741,24.024]
[1643507709396,1.71753544,94.791,94.741,24.024]
[1643507709596,0.25,94.791,94.741,24.024]
[1643507710223,1.71753544,94.792,94.741,24.024]
[1643507710404,0.25,94.791,94.741,24.024]
[1643507711598,0.25,94.796,94.741,24.024]
[1643507712811,0.25,94.798,94.742,105.8]
[1643507713207,1.46753544,94.799,94.743,0.25]
[1643507713407,0.25,94.798,94.743,0.25]
[1643507714208,1.46753544,94.801,94.743,0.25]
[1643507714408,0.25,94.8,94.743,0.25]
[1643507715008,0.1,94.817,94.743,0.25]
[1643507715009,6.0,94.795,94.743,0.25]
[1643507715412,6.0,94.794,94.743,0.25]
[1643507715608,6.1,94.794,94.743,0.25]
[1643507715808,6.0,94.794,94.743,0.25]
[1643507716009,6.0,94.795,94.743,0.25]
[1643507716211,6.1,94.795,94.743,0.25]
[1643507716410,0.25,94.794,94.743,0.25]
[1643507716610,6.0,94.794,94.743,0.25]
[1643507716809,6.1,94.794,94.743,0.25]
[1643507717010,6.0,94.794,94.743,0.25]
[1643507717410,6.0,94.796,94.744,1.83712019]
[1643507717609,1.46753544,94.806,94.744,1.83712019]
[1643507717830,1.46753544,94.808,94.745,0.25]
[1643507718033,6.0,94.798,94.745,0.25]
[1643507718631,6.0,94.797,94.745,0.25]
[1643507718834,6.1,94.797,94.743,0.25]
[1643507719031,6.0,94.797,94.743,0.25]
[1643507719433,6.0,94.793,94.743,0.25]
[1643507719632,6.0,94.792,94.743,0.25]
[1643507720636,6.0,94.793,94.743,0.25]
[1643507720834,0.25,94.791,94.743,0.25]
[1643507721233,5.5,94.793,94.743,0.25]
[1643507721638,1.46753544,94.803,94.743,0.25]
[1643507721839,0.25,94.792,94.743,0.25]
[1643507722443,0.25,94.792,94.742,0.25]
[1643507722846,0.25,94.801,94.742,0.25]
[1643507723045,1.71753544,94.801,94.742,0.25]
[1643507723247,6.0,94.792,94.742,0.25]
[1643507723445,6.0,94.791,94.742,0.25]
[1643507723644,6.35,94.791,94.742,0.25]
[1643507723845,0.25,94.79,94.742,0.25]
[1643507725246,6.0,94.792,94.742,0.25]
[1643507725446,0.25,94.791,94.742,0.25]
[1643507725647,6.0,94.789,94.742,0.25]
[1643507727251,1.46753544,94.798,94.742,0.25]
[1643507727650,1.46753544,94.801,94.742,0.25]
[1643507727850,0.25,94.8,94.742,0.25]
[1643507728250,1.46753544,94.798,94.742,0.25]
[1643507729250,1.46753544,94.796,94.742,0.25]
[1643507729451,1.46753544,94.795,94.742,0.25]
[1643507729650,1.46753544,94.796,94.742,0.25]
[1643507729853,1.71753544,94.795,94.742,0.25]
[1643507730051,1.46753544,94.795,94.742,0.25]
[1643507730250,0.25,94.794,94.742,0.25]
[1643507731251,1.46753544,94.791,94.742,0.25]
[1643507731650,0.25,94.79,94.742,0.25]
[1643507731852,1.71753544,94.79,94.742,0.25]
[1643507732353,1.71753544,94.79,94.731,24.1992]
[1643507732753,0.25,94.79,94.731,24.1992]
[1643507732954,0.25,94.79,94.732,107.63712019]
[1643507733157,1.46753544,94.792,94.732,107.63712019]
[1643507733158,0.25,94.791,94.732,107.63712019]
[1643507733356,0.25,94.791,94.733,2.08712019]
[1643507733755,0.25,94.792,94.734,1.83712019]
[1643507734157,0.25,94.792,94.735,0.25]
[1643507734357,0.25,94.793,94.735,0.25]
[1643507734557,0.25,94.793,94.736,1.83712019]
[1643507734760,1.46753544,94.794,94.742,6.0]
[1643507734958,1.71753544,94.795,94.742,6.0]
[1643507735159,0.25,94.793,94.743,23.6448]
[1643507735360,1.71753544,94.795,94.743,23.6448]
[1643507735562,1.46753544,94.794,94.743,23.6448]
[1643507735962,0.25,94.793,94.743,23.6448]
[1643507736484,1.71753544,94.793,94.743,23.6448]
[1643507736685,1.46753544,94.793,94.743,23.6448]
[1643507736886,1.46753544,94.795,94.743,23.6448]
[1643507737088,1.46753544,94.796,94.743,23.6448]
[1643507739489,1.46753544,94.794,94.743,23.6448]
[1643507741091,1.46753544,94.796,94.743,23.6448]
[1643507741293,1.46753544,94.794,94.743,23.6448]
[1643507742094,1.46753544,94.796,94.743,23.6448]
[1643507742792,1.46753544,94.794,94.743,23.6448]
[1643507743393,6.0,94.784,94.743,23.6448]
[1643507743992,6.0,94.785,94.743,23.6448]
[1643507746099,6.0,94.784,94.743,23.6448]
[1643507746998,1.46753544,94.796,94.743,23.6448]
[1643507747199,1.46753544,94.798,94.743,23.6448]
[1643507747398,6.0,94.786,94.743,0.25]
[1643507747599,6.0,94.788,94.729,19.40744151]
[1643507747798,0.25,94.785,94.729,19.40744151]
[1643507747998,6.0,94.78,94.729,19.40744151]
[1643507748400,6.0,94.775,94.729,19.40744151]
[1643507748598,6.0,94.772,94.729,19.40744151]
[1643507748802,6.0,94.772,94.73,0.25]
[1643507749801,1.46753544,94.783,94.729,19.40744151]
[1643507750000,6.0,94.773,94.729,19.40744151]
[1643507750201,6.0,94.773,94.73,23.8324]
[1643507750400,0.25,94.772,94.73,23.8324]
[1643507750602,6.0,94.777,94.73,23.8324]
[1643507751002,6.0,94.775,94.73,23.8324]
[1643507751304,0.25,94.774,94.731,0.25]
[1643507751502,0.25,94.774,94.73,23.8324]
[1643507751705,0.25,94.774,94.731,0.25]
[1643507752105,6.25,94.774,94.731,0.25]
[1643507752507,0.25,94.774,94.731,0.25]
[1643507752703,6.0,94.774,94.731,0.25]
[1643507752906,0.25,94.773,94.731,0.25]
[1643507754806,0.25,94.774,94.731,0.25]
[1643507756508,1.46753544,94.785,94.731,0.25]
[1643507756706,1.46753544,94.785,94.731,106.05]
[1643507756908,0.1,94.788,94.731,106.05]
[1643507757508,0.1,94.788,94.742,105.8]
[1643507757708,1.46753544,94.796,94.743,24.6662]
[1643507757913,1.46753544,94.799,94.744,0.25]
[1643507758115,1.46753544,94.8,94.744,0.25]
[1643507758315,1.46753544,94.801,94.744,0.25]
[1643507758816,0.25,94.8,94.744,0.25]
[1643507759815,1.46753544,94.802,94.744,0.25]
[1643507760115,1.46753544,94.803,94.744,0.25]
[1643507760314,1.46753544,94.804,94.744,0.25]
[1643507760715,1.46753544,94.804,94.744,106.05]
[1643507760915,1.46753544,94.809,94.754,6.0]
[1643507761118,1.46753544,94.815,94.755,24.1984]
[1643507761317,1.46753544,94.817,94.755,24.4484]
[1643507761917,1.46753544,94.821,94.755,24.4484]
[1643507762316,0.25,94.82,94.755,24.4484]
[1643507762517,0.25,94.82,94.766,36.99651844]
[1643507762742,0.25,94.82,94.767,24.9567]
[1643507762944,0.25,94.82,94.767,25.2067]
[1643507763343,0.25,94.821,94.767,25.2067]
[1643507763943,0.25,94.823,94.767,25.2067]
[1643507764544,6.0,94.814,94.767,25.2067]
[1643507764744,0.25,94.823,94.767,25.2067]
[1643507764943,0.25,94.823,94.768,105.8]
[1643507765444,0.41475284,94.824,94.769,0.25]
[1643507766848,0.16475284,94.824,94.769,0.25]
[1643507767444,0.16475284,94.824,94.768,0.25]
[1643507767644,6.0,94.816,94.768,0.25]
[1643507769047,6.0,94.817,94.768,0.25]
[1643507769747,0.16475284,94.824,94.777,6.0]
[1643507770149,0.16475284,94.824,94.778,0.25]
[1643507771147,0.16475284,94.824,94.778,6.25]
[1643507771748,0.16475284,94.824,94.778,0.25]
[1643507772152,0.16475284,94.824,94.769,0.25]
[1643507777461,6.0,94.819,94.7,52.764]
[1643507777666,23.9,94.818,94.71,15.27]
[1643507777962,15.27,94.81,94.704,23.7521]
[1643507778161,107.26753544,94.807,94.695,24.3202814]
[1643507778361,1.46753544,94.798,94.695,22.8665]
[1643507778561,6.0,94.8,94.696,45.7177187]
[1643507778562,7.46753544,94.788,94.696,45.7177187]
[1643507778762,6.0,94.788,94.696,45.7177187]
[1643507778962,6.0,94.786,94.697,0.25]
[1643507779166,6.0,94.78,94.697,0.25]
[1643507779362,6.25,94.779,94.697,0.25]
[1643507779562,6.0,94.769,94.697,0.25]
[1643507779764,6.0,94.769,94.696,45.7177187]
[1643507779962,3.20669142,94.768,94.696,45.7177187]
[1643507780364,6.0,94.758,94.696,45.7177187]
[1643507780564,6.0,94.757,94.696,45.7177187]
[1643507780764,9.20669142,94.757,94.696,45.7177187]
[1643507780963,2.95669142,94.756,94.696,45.7177187]
[1643507781164,6.0,94.75,94.696,45.7177187]
[1643507781366,6.0,94.746,94.696,45.7177187]
[1643507781866,3.20669142,94.745,94.696,45.7177187]
[1643507782067,6.0,94.735,94.696,45.7177187]
[1643507782270,0.25,94.734,94.696,45.7177187]
[1643507782468,0.25,94.734,94.64,66.6346814]
[1643507782671,6.25,94.734,94.641,0.25]
[1643507782870,2.95669142,94.733,94.636,1.83627268]
[1643507783072,6.0,94.723,94.642,1.83627268]
[1643507783272,0.25,94.722,94.642,1.83627268]
[1643507783472,6.0,94.72,94.642,1.83627268]
[1643507783673,13.27,94.72,94.626,1.4537814]
[1643507783872,15.27,94.71,94.622,16.0004]
[1643507784072,6.0,94.709,94.622,16.0004]
[1643507784272,6.0,94.7,94.623,1.83627268]
[1643507784572,6.0,94.7,94.624,40.68839479]
[1643507784573,6.0,94.699,94.624,40.68839479]
[1643507784775,6.25,94.699,94.624,40.68839479]
[1643507784973,6.0,94.69,94.624,40.68839479]
[1643507785176,6.0,94.69,94.625,0.25]
[1643507785375,6.25,94.689,94.625,0.25]
[1643507785575,6.0,94.679,94.625,0.25]
[1643507785775,0.25,94.678,94.625,0.25]
[1643507786776,0.25,94.689,94.626,1.83073509]
[1643507787277,0.25,94.689,94.627,0.25]
[1643507787675,0.25,94.689,94.628,1.83073509]
[1643507787876,0.25,94.689,94.629,0.25]
[1643507788075,0.25,94.709,94.629,0.25]
[1643507789700,0.25,94.709,94.63,1.83073509]
[1643507789903,0.25,94.709,94.631,0.25]
[1643507790298,0.25,94.709,94.632,1.83073509]
[1643507790799,0.25,94.709,94.633,0.25]
[1643507791400,0.25,94.709,94.634,1.83073509]
[1643507791903,0.25,94.709,94.635,0.25]
[1643507792301,0.25,94.709,94.635,2.08073509]
[1643507800406,6.0,94.71,94.635,2.08073509]
[1643507800606,0.25,94.709,94.635,2.08073509]
[1643507803011,6.0,94.71,94.635,2.08073509]
[1643507803714,6.0,94.718,94.635,2.08073509]
[1643507803911,6.0,94.718,94.645,6.0]
[1643507804313,0.25,94.717,94.646,0.25]
[1643507810956,0.25,94.717,94.625,114.3537814]
[1643507811156,6.0,94.71,94.636,0.25]
[1643507811355,24.0771,94.709,94.636,0.25]
[1643507811556,6.0,94.699,94.636,0.25]
[1643507811960,0.25,94.698,94.636,6.25]
[1643507812156,0.25,94.698,94.636,6.0]
[1643507812356,0.25,94.698,94.637,0.25]
[1643507813657,0.25,94.698,94.632,0.25]
[1643507814156,0.25,94.698,94.633,1.82534718]
[1643507814355,0.25,94.698,94.634,0.25]
[1643507818159,0.25,94.698,94.63,1.4537814]
[1643507818365,1.46753544,94.697,94.614,1.4537814]
[1643507818559,6.0,94.687,94.612,25.16406616]
[1643507818760,0.25,94.686,94.613,1.4537814]
[1643507818959,6.0,94.683,94.614,1.4537814]
[1643507819160,0.25,94.686,94.614,1.4537814]
[1643507819359,0.25,94.686,94.615,105.8]
[1643507819562,6.0,94.677,94.615,107.2537814]
[1643507819760,0.25,94.676,94.614,25.3045814]
[1643507819959,0.25,94.676,94.625,22.6109]
[1643507820160,0.25,94.676,94.625,22.8609]
[1643507820564,1.46753544,94.696,94.625,22.8609]
[1643507820762,0.25,94.694,94.625,22.8609]
[1643507820966,6.0,94.686,94.625,22.8609]
[1643507821163,6.0,94.687,94.625,22.8609]
[1643507821363,0.25,94.686,94.625,22.8609]
[1643507821563,0.25,94.686,94.626,1.81966616]
[1643507821763,0.25,94.686,94.627,0.25]
[1643507821963,6.25,94.686,94.627,0.25]
[1643507822163,0.25,94.686,94.628,1.81966616]
[1643507822363,6.0,94.676,94.629,0.25]
[1643507822562,0.25,94.686,94.629,0.25]
[1643507822764,0.25,94.686,94.63,1.81966616]
[1643507823163,6.0,94.688,94.631,0.25]
[1643507823364,0.25,94.687,94.631,0.25]
[1643507823666,0.25,94.687,94.632,1.81966616]
[1643507823866,0.25,94.687,94.633,0.25]
[1643507824064,0.25,94.687,94.642,6.0]
[1643507824269,0.25,94.697,94.643,0.25]
[1643507825465,0.25,94.697,94.635,0.25]
[1643507827366,0.25,94.697,94.636,1.81966616]
[1643507827766,0.25,94.697,94.637,0.25]
[1643507828168,0.25,94.697,94.638,1.81966616]
[1643507828468,0.25,94.697,94.639,0.25]
[1643507828871,0.25,94.697,94.64,1.81966616]
[1643507829270,0.25,94.697,94.641,0.25]
[1643507830573,0.25,94.697,94.65,6.0]
[1643507844214,1.46753544,94.711,94.651,0.25]
[1643507844421,1.46753544,94.715,94.651,26.01956616]
[1643507844620,1.46753544,94.725,94.652,1.81966616]
[1643507844815,1.46753544,94.725,94.661,6.0]
[1643507845015,1.46753544,94.737,94.662,21.71556516]
[1643507845215,1.46753544,94.738,94.662,23.53523132]
[1643507845416,1.46753544,94.738,94.663,136.81526616]
[1643507845618,1.46753544,94.738,94.672,6.0]
[1643507845814,1.46753544,94.746,94.673,0.25]
[1643507846014,1.46753544,94.747,94.674,6.0]
[1643507846215,0.25,94.745,94.675,128.8121]
[1643507846417,0.25,94.745,94.683,6.0]
[1643507846615,0.25,94.745,94.685,6.0]
[1643507846815,0.25,94.745,94.686,23.7687]
[1643507847024,0.25,94.745,94.686,29.7687]
[1643507847025,6.0,94.742,94.686,29.7687]
[1643507847316,0.25,94.741,94.686,29.7687]
[1643507847516,0.25,94.741,94.694,6.0]
[1643507847716,0.25,94.741,94.695,34.75894239]
[1643507847917,0.25,94.741,94.695,35.00894239]
[1643507848517,0.25,94.756,94.695,35.00894239]
[1643507848718,0.25,94.757,94.695,35.00894239]
[1643507848920,1.71597499,94.758,94.695,35.00894239]
[1643507849621,0.25,94.758,94.695,35.00894239]
[1643507849817,1.46597499,94.76,94.696,1.81966616]
[1643507850019,1.46597499,94.761,94.696,1.81966616]
[1643507850219,1.46597499,94.761,94.697,0.25]
[1643507850220,6.0,94.758,94.697,0.25]
[1643507850419,0.25,94.757,94.697,24.6733]
[1643507851718,0.25,94.76,94.697,24.6733]
[1643507851920,0.25,94.76,94.698,1.81966616]
[1643507852420,0.25,94.76,94.699,0.25]
[1643507853218,0.25,94.762,94.699,0.25]
[1643507853420,0.25,94.763,94.699,0.25]
[1643507854821,0.25,94.764,94.699,0.25]
[1643507855422,0.25,94.764,94.708,6.0]
[1643507855920,0.25,94.764,94.709,0.25]
[1643507856521,0.25,94.764,94.709,6.25]
[1643507856723,0.25,94.764,94.709,112.05]
[1643507862233,0.25,94.764,94.709,113.86966616]
[1643507862430,0.25,94.764,94.709,8.06966616]
[1643507862632,4.909873,94.765,94.709,8.06966616]
[1643507863031,1.46597499,94.79,94.718,6.0]
[1643507863231,1.46597499,94.79,94.719,23.6442]
[1643507863433,6.0,94.78,94.719,29.8942]
[1643507863631,1.46597499,94.792,94.719,29.8942]
[1643507863632,6.0,94.782,94.719,29.8942]
[1643507864031,0.25,94.781,94.719,29.8942]
[1643507864632,0.25,94.781,94.72,6.0]
[1643507864837,0.25,94.781,94.721,0.25]
[1643507865431,6.0,94.783,94.721,0.25]
[1643507865432,0.25,94.782,94.721,0.25]
[1643507866035,1.46597499,94.798,94.729,6.0]
[1643507866234,1.46597499,94.798,94.73,44.95571756]
[1643507866534,1.46597499,94.8,94.73,45.20571756]